bitfinex-derivatives/quotes_ETHF0:USTF0_20241022
["timestamp","ask_amount","ask_price","bid_price","bid_amount"]
[1729588247164,0.37982,2634.0,2633.3,5.5878]
[1729588247366,0.37983,2633.9,2633.7,0.37985]
[1729588248066,3.2078,2634.1,2633.6,0.37987]
[1729588248269,3.2078,2634.1,2633.3,5.5878]
[1729588248270,0.37984,2633.9,2633.3,5.5878]
[1729588248566,3.2078,2634.1,2633.7,2.38]
[1729588248777,3.2078,2634.1,2633.8,0.37985]
[1729588249065,3.2078,2634.1,2633.7,2.38]
[1729588249066,3.2078,2634.1,2634.0,0.37982]
[1729588249363,3.2078,2634.5,2633.8,3.2078]
[1729588249560,0.37978,2634.3,2634.0,0.37981]
[1729588249765,0.3798,2634.2,2633.8,3.2078]
[1729588249959,0.3798,2634.2,2634.0,0.37982]
[1729588250160,3.2078,2634.5,2633.8,3.2078]
[1729588250461,0.05949743,2634.4,2633.9,0.37982]
[1729588250758,0.3798,2634.2,2633.9,0.37982]
[1729588250957,3.2078,2634.5,2633.9,0.37982]
[1729588251164,3.2078,2634.5,2633.7,2.38]
[1729588251165,0.3798,2634.2,2634.0,0.37981]
[1729588251872,0.37978,2634.3,2634.0,0.37982]
[1729588252061,3.2078,2634.5,2634.0,2.38]
[1729588252758,3.2078,2634.5,2634.4,0.37976]
[1729588253171,3.2078,2635.3,2634.4,7.38356]
[1729588253360,0.43916393,2635.2,2635.0,0.37966]
[1729588253563,3.2078,2635.5,2635.0,0.37967]
[1729588253769,5.5878,2635.5,2634.7,5.5878]
[1729588254070,0.37965,2635.2,2634.9,0.37968]
[1729588254268,0.37968,2635.0,2634.7,3.5875]
[1729588254458,5.5878,2635.1,2634.4,40.8]
[1729588254768,0.37968,2635.0,2634.7,0.37971]
[1729588255082,3.2078,2635.1,2634.6,2.38]
[1729588255367,0.37962,2635.4,2635.1,0.37966]
[1729588255860,2.75961,2635.5,2635.2,0.37964]
[1729588256260,2.75961,2635.5,2635.1,0.37965]
[1729588256261,0.37962,2635.4,2635.1,0.37965]
[1729588256467,0.37961,2635.4,2635.1,0.37965]
[1729588256663,0.37965,2635.2,2634.9,0.37969]
[1729588256867,2.75964,2635.3,2635.0,0.37966]
[1729588257262,0.37964,2635.3,2635.0,0.37966]
[1729588257462,0.37964,2635.3,2634.6,2.38]
[1729588257664,0.37964,2635.3,2635.1,0.37965]
[1729588257860,0.37964,2635.3,2635.0,0.37966]
[1729588258064,3.2078,2635.4,2635.0,0.37966]
[1729588258259,0.43914203,2635.3,2634.8,0.3797]
[1729588258566,0.43914203,2635.3,2635.0,0.37966]
[1729588258774,0.05951203,2635.2,2634.4,3.2078]
[1729588258977,0.37969,2634.9,2634.7,0.37971]
[1729588259271,2.38,2635.0,2634.5,0.37973]
[1729588259470,0.43921526,2634.8,2634.5,0.37973]
[1729588259671,0.05950526,2634.7,2634.5,0.37973]
[1729588259871,0.05950526,2634.7,2634.6,0.37973]
[1729588260274,0.05950526,2634.7,2634.2,2.38]
[1729588260482,0.05950526,2634.7,2634.6,0.37973]
[1729588261278,0.05950253,2634.7,2634.6,0.37972]
[1729588261473,0.3797,2634.8,2634.6,0.37972]
[1729588261777,2.38,2635.2,2634.4,2.38]
[1729588261969,0.37968,2635.0,2634.7,0.37971]
[1729588262171,0.05950488,2635.1,2634.6,5.5878]
[1729588262367,3.58742,2635.4,2635.2,0.37964]
[1729588262875,3.2078,2635.4,2634.8,2.38]
[1729588263075,0.37964,2635.3,2635.0,0.37966]
[1729588263381,3.2078,2635.4,2634.9,0.37969]
[1729588263382,0.37967,2635.1,2634.9,0.37969]
[1729588264173,0.05951391,2635.0,2634.9,0.37969]
[1729588264367,5.5878,2635.4,2634.9,0.37969]
[1729588264566,0.37966,2635.1,2634.9,0.37969]
[1729588265166,3.2078,2635.1,2634.4,2.38]
[1729588265367,1.519,2635.6,2634.3,3.2078]
[1729588265368,0.37976,2634.4,2634.3,3.2078]
[1729588265570,5.5878,2634.8,2634.0,5.5878]
[1729588265571,3.2078,2634.8,2634.0,5.5878]
[1729588265769,3.2078,2634.8,2634.2,2.38]
[1729588266279,0.37976,2634.5,2634.3,0.37977]
[1729588266475,3.2078,2634.8,2634.2,2.38]
[1729588266980,5.5878,2635.2,2634.2,2.38]
[1729588267174,0.37971,2634.8,2634.6,0.37973]
[1729588267474,5.5878,2635.2,2634.4,2.38]
[1729588267681,3.2078,2635.2,2635.1,0.37966]
[1729588269073,0.37963,2635.3,2635.1,0.37966]
[1729588269270,0.37961,2635.5,2635.3,0.37963]
[1729588269778,3.58739,2635.6,2635.4,0.37961]
[1729588270186,3.58739,2635.6,2635.5,0.3796]
[1729588270374,3.2078,2635.6,2635.5,0.3796]
[1729588271878,3.58739,2635.6,2635.5,0.3796]
[1729588272586,3.2078,2635.6,2635.5,0.3796]
[1729588272884,3.58739,2635.6,2635.5,0.3796]
[1729588273184,3.2078,2635.6,2635.5,0.3796]
[1729588273485,3.58739,2635.6,2635.4,0.37961]
[1729588274074,3.58739,2635.6,2635.3,2.38]
[1729588274277,3.58739,2635.6,2635.5,0.3796]
[1729588274485,3.58739,2635.6,2635.3,2.38]
[1729588274486,0.37961,2635.5,2635.3,2.38]
[1729588274687,0.37961,2635.5,2635.4,0.37961]
[1729588274880,3.58739,2635.6,2635.1,3.2078]
[1729588275288,3.2078,2635.6,2635.5,0.3796]
[1729588275880,3.2078,2635.6,2635.3,2.38]
[1729588276082,3.2078,2635.6,2635.1,3.2078]
[1729588276083,0.37951,2636.2,2635.9,0.37953]
[1729588276286,3.2078,2636.3,2635.8,2.38]
[1729588276591,0.37951,2636.2,2635.9,0.37954]
[1729588276888,3.58729,2636.3,2635.9,0.37954]
[1729588277180,3.58729,2636.3,2635.8,2.38]
[1729588277181,3.2078,2636.3,2636.0,0.37952]
[1729588277383,3.2078,2636.3,2635.8,2.38]
[1729588277582,3.2078,2636.3,2636.1,0.37951]
[1729588277783,3.58729,2636.3,2635.9,0.37954]
[1729588277985,3.2078,2636.3,2636.0,0.37952]
[1729588278191,3.58729,2636.3,2635.9,0.37953]
[1729588278384,3.58729,2636.3,2635.7,3.2078]
[1729588278686,3.2078,2636.3,2635.7,3.2078]
[1729588278878,3.2078,2636.3,2635.4,3.2078]
[1729588278879,2.38,2636.1,2635.4,3.2078]
[1729588279079,0.37956,2635.9,2635.5,0.37959]
[1729588279280,0.37956,2635.8,2635.5,0.37959]
[1729588279480,0.37957,2635.7,2635.4,0.37961]
[1729588279682,3.2078,2635.7,2635.1,3.2078]
[1729588279879,0.37964,2635.2,2635.1,3.2078]
[1729588280181,0.9489,2635.8,2634.9,2.38]
[1729588280182,4.7258,2635.8,2634.9,2.38]
[1729588280382,0.37958,2635.7,2635.4,0.37961]
[1729588280586,0.37958,2635.7,2635.4,0.3796]
[1729588280993,0.37958,2635.7,2635.5,0.3796]
[1729588281781,3.7944,2635.6,2634.9,2.38]
[1729588282093,5.10536,2635.8,2635.6,0.37959]
[1729588282287,5.10536,2635.8,2635.5,0.37959]
[1729588282288,3.7944,2635.7,2635.5,0.37959]
[1729588282490,3.2078,2635.8,2635.1,3.2078]
[1729588282793,3.2078,2635.8,2634.9,2.38]
[1729588282988,2.38,2635.6,2634.9,2.38]
[1729588283189,2.75959,2635.6,2635.4,0.37961]
[1729588283493,0.37959,2635.6,2635.4,0.37961]
[1729588283990,3.2078,2635.8,2635.1,2.38]
[1729588284187,0.37958,2635.7,2635.5,0.37959]
[1729588284487,0.37958,2635.7,2635.3,0.37962]
[1729588284488,0.37959,2635.6,2635.3,0.37962]
[1729588284691,3.2078,2635.5,2634.6,2.38]
[1729588284895,0.37965,2635.2,2634.9,0.37967]
[1729588285191,0.37965,2635.2,2634.9,0.37968]
[1729588285388,0.37965,2635.2,2635.0,0.37967]
[1729588285892,0.37965,2635.2,2634.2,0.94946]
[1729588285893,3.2078,2635.5,2635.4,0.37961]
[1729588286083,3.2078,2635.9,2635.3,2.38]
[1729588286283,3.2078,2635.9,2635.8,0.37954]
[1729588286487,2.38,2636.3,2635.6,2.38]
[1729588286488,3.2078,2636.3,2635.6,2.38]
[1729588286688,0.37951,2636.2,2635.9,0.37953]
[1729588287087,0.37951,2636.2,2636.0,0.37953]
[1729588287893,0.37951,2636.1,2635.9,0.37954]
[1729588288406,5.5878,2636.3,2635.6,2.38]
[1729588288407,0.37951,2636.2,2635.6,2.38]
[1729588288694,0.37951,2636.2,2635.9,0.37953]
[1729588288884,0.3795,2636.2,2635.9,0.37953]
[1729588289088,0.37952,2636.1,2635.9,0.37953]
[1729588289286,0.37951,2636.2,2635.7,0.37957]
[1729588289491,0.37951,2636.2,2635.9,0.37953]
[1729588289689,5.5878,2636.3,2635.9,0.37953]
[1729588289889,0.37951,2636.1,2635.9,0.37953]
[1729588290084,0.37951,2636.1,2635.6,2.38]
[1729588290085,0.37954,2636.0,2635.8,0.37956]
[1729588290995,0.37952,2636.1,2635.9,0.37954]
[1729588291191,5.5878,2636.3,2635.4,3.2078]
[1729588291403,0.37956,2635.8,2635.6,0.37958]
[1729588292792,0.37958,2635.7,2635.5,0.37959]
[1729588293000,3.7944,2635.8,2635.1,2.38]
[1729588293001,0.37957,2635.8,2635.6,0.37958]
[1729588293508,0.37957,2635.8,2635.1,2.38]
[1729588293509,4.17397,2635.8,2635.1,2.38]
[1729588293691,0.37957,2635.8,2635.7,0.37957]
[1729588294091,4.17317,2635.8,2635.7,0.37957]
[1729588294289,4.17317,2635.8,2635.6,0.37958]
[1729588294493,0.37957,2635.8,2635.6,0.37958]
[1729588294801,0.37957,2635.8,2635.1,3.32912]
[1729588294802,0.37958,2635.7,2635.5,0.3796]
[1729588295598,3.2078,2636.0,2635.3,2.38]
[1729588295801,0.37949,2636.3,2636.1,0.37951]
[1729588296493,0.3795,2636.2,2635.6,3.2078]
[1729588296694,2.38,2636.1,2635.6,3.2078]
[1729588296897,1.517,2636.5,2635.1,2.38]
[1729588296898,5.5878,2635.9,2635.1,2.38]
[1729588297099,5.5878,2635.9,2634.9,3.2078]
[1729588297100,0.37961,2635.5,2635.3,0.37962]
[1729588297396,3.2078,2635.6,2635.4,0.37961]
[1729588297397,3.5874,2635.6,2635.4,0.37961]
[1729588297594,0.3796,2635.5,2635.4,0.26024384]
[1729588297901,0.3796,2635.5,2634.6,40.8]
[1729588297902,0.37967,2635.1,2634.6,40.8]
[1729588298196,3.58745,2635.2,2634.6,40.8]
[1729588298494,3.2078,2635.2,2635.1,0.37966]
[1729588298700,3.26735448,2635.5,2635.0,2.38]
[1729588298898,3.2078,2635.5,2635.4,0.37961]
[1729588299104,7.0022,2635.5,2635.4,0.24009399]
[1729588299600,7.0022,2635.5,2634.6,41.7493]
[1729588299601,9.44175074,2635.5,2635.1,0.37965]
[1729588299802,3.2078,2635.2,2634.6,2.38]
[1729588300004,3.2078,2635.5,2634.8,2.38]
[1729588300298,0.05954884,2635.4,2634.9,0.37969]
[1729588300492,3.2078,2635.5,2635.4,0.37961]
[1729588300693,3.58736,2635.8,2635.6,0.37958]
[1729588300900,0.37956,2635.8,2635.6,0.37958]
[1729588301197,3.2078,2636.1,2635.3,0.94908]
[1729588301400,0.37954,2636.0,2635.8,0.37955]
[1729588301997,3.2078,2636.1,2635.2,2.38]
[1729588302304,3.58736,2635.8,2635.6,0.37958]
[1729588302690,3.58736,2635.8,2635.2,2.38]
[1729588302691,3.58736,2635.8,2635.5,0.37959]
[1729588302895,3.2078,2635.8,2635.2,2.38]
[1729588303202,0.37958,2635.7,2635.5,0.3796]
[1729588303597,0.37958,2635.7,2635.5,0.27782828]
[1729588304000,3.58737,2635.8,2635.3,0.37963]
[1729588304200,3.58737,2635.8,2635.5,0.37959]
[1729588304498,3.58737,2635.8,2635.2,2.38]
[1729588304499,0.37958,2635.7,2635.2,2.38]
[1729588304691,0.37958,2635.7,2635.5,0.37959]
[1729588305202,0.37959,2635.6,2635.4,0.37961]
[1729588305395,3.5874,2635.5,2635.3,0.37962]
[1729588305697,3.2078,2635.5,2635.3,0.37962]
[1729588305902,3.2078,2635.5,2635.4,0.37961]
[1729588306893,3.2078,2635.5,2635.0,2.38]
[1729588307100,5.5878,2635.9,2635.0,2.38]
[1729588307504,3.2078,2635.9,2635.7,0.37956]
[1729588307702,3.58735,2635.9,2635.7,0.37956]
[1729588308201,3.2078,2635.9,2635.3,0.37963]
[1729588308401,3.2078,2635.9,2635.8,0.37956]
[1729588308602,7.0014,2635.9,2635.8,0.37956]
[1729588309000,7.0014,2635.9,2635.7,0.37956]
[1729588309198,0.37958,2635.7,2635.5,0.3796]
[1729588309506,3.5874,2635.6,2635.4,0.37961]
[1729588309804,3.5874,2635.6,2635.3,0.37962]
[1729588310196,3.2078,2635.6,2635.0,2.38]
[1729588310403,0.37961,2635.5,2635.3,0.37962]
[1729588310609,0.37961,2635.5,2635.0,2.38]
[1729588310610,3.58739,2635.6,2635.4,0.37961]
[1729588310902,3.2078,2635.6,2635.5,0.3796]
[1729588311703,3.2078,2635.6,2635.5,0.24122864]
[1729588312005,3.2078,2635.6,2635.5,0.17708131]
[1729588312208,3.2078,2635.6,2635.3,2.38]
[1729588312506,3.2078,2635.6,2635.5,0.3796]
[1729588312908,0.37955,2635.9,2635.3,2.38]
[1729588313105,0.37955,2635.9,2635.7,0.37956]
[1729588313609,3.2078,2636.0,2635.3,2.38]
[1729588313805,3.2078,2636.0,2635.9,0.37954]
[1729588314011,3.2078,2636.0,2635.9,0.24232061]
[1729588317209,3.2078,2636.5,2636.4,0.37946]
[1729588317399,3.2078,2636.5,2636.1,2.38]
[1729588317713,3.2078,2636.5,2636.4,0.37947]
[1729588318099,3.2078,2636.5,2636.4,0.27968248]
[1729588318298,3.2078,2636.5,2635.9,43.18]
[1729588318500,0.37947,2636.4,2636.2,0.37949]
[1729588318700,0.37949,2636.3,2636.1,0.37951]
[1729588318905,3.2078,2636.2,2635.5,2.38]
[1729588319100,0.37952,2636.1,2635.9,0.37953]
[1729588319611,3.2078,2636.2,2635.9,0.37953]
[1729588319811,0.37952,2636.1,2635.9,0.37953]
[1729588320304,0.37952,2636.1,2635.5,2.38]
[1729588320506,3.2078,2636.2,2635.5,2.38]
[1729588320906,0.37958,2635.7,2635.5,0.37959]
[1729588321101,3.2078,2635.6,2635.5,0.37959]
[1729588321307,0.37957,2635.8,2635.6,0.37958]
[1729588321714,0.37958,2635.7,2635.5,0.37959]
[1729588321917,0.37958,2635.7,2635.3,2.38]
[1729588322122,3.2078,2635.9,2635.6,0.37959]
[1729588322508,0.37958,2635.7,2635.5,0.37959]
[1729588323316,0.37958,2635.7,2635.6,0.37959]
[1729588323526,0.37957,2635.8,2635.3,2.38]
[1729588323717,3.58735,2635.9,2635.4,0.37961]
[1729588324016,3.58735,2635.9,2635.3,2.38]
[1729588324208,3.58735,2635.9,2635.7,0.37957]
[1729588324407,3.2078,2635.9,2635.7,0.37957]
[1729588324604,0.37956,2635.8,2635.7,0.37957]
[1729588324805,3.2078,2635.9,2635.3,2.38]
[1729588325011,0.37959,2635.6,2635.1,3.32915]
[1729588325406,0.37957,2635.8,2635.6,0.37958]
[1729588325912,4.17397,2635.8,2635.6,0.37958]
[1729588326104,0.37958,2635.7,2635.5,0.37959]
[1729588326709,0.3796,2635.6,2635.4,0.37961]
[1729588326913,0.3796,2635.6,2635.0,1.40186868]
[1729588326914,3.2078,2635.6,2635.0,1.40186868]
[1729588327113,3.2078,2635.6,2635.0,0.68133586]
[1729588327313,0.37962,2635.4,2635.2,0.37964]
[1729588327817,0.37963,2635.3,2635.0,0.68133586]
[1729588328120,0.37962,2635.4,2635.2,0.37964]
[1729588328911,3.7944,2635.4,2635.0,0.68133586]
[1729588329120,3.2078,2635.1,2634.7,2.38]
[1729588329312,3.58746,2635.1,2634.9,0.37968]
[1729588330517,3.2078,2635.1,2635.0,0.37967]
[1729588331111,3.58746,2635.1,2635.0,0.37967]
[1729588332117,3.58746,2635.1,2634.9,0.37967]
[1729588332419,3.58746,2635.1,2634.7,2.38]
[1729588332719,3.58746,2635.1,2635.0,0.37967]
[1729588332918,3.2078,2635.1,2635.0,0.37967]
[1729588333120,3.2078,2635.1,2635.0,0.30095354]
[1729588333613,3.58746,2635.1,2635.0,0.30095354]
[1729588334116,3.58746,2635.1,2634.9,0.37968]
[1729588334523,0.37969,2634.9,2634.7,0.37971]
[1729588334816,0.37969,2634.9,2634.8,0.3797]
[1729588335116,0.37968,2635.0,2634.8,0.3797]
[1729588335315,3.58747,2635.1,2634.9,0.37969]
[1729588336624,3.2078,2635.1,2634.8,0.37969]
[1729588336919,0.37968,2635.0,2634.8,0.37969]
[1729588337113,0.37968,2635.0,2634.4,2.38]
[1729588337316,0.37968,2635.0,2634.9,0.37969]
[1729588337719,0.37969,2634.9,2634.7,0.3797]
[1729588338017,0.37968,2635.0,2634.8,0.37969]
[1729588338423,3.58747,2635.1,2634.9,0.37968]
[1729588338719,0.37967,2635.0,2634.9,0.37968]
[1729588339322,0.37967,2635.0,2634.4,3.32938]
[1729588339517,0.37969,2634.9,2634.4,2.38]
[1729588339822,3.2078,2635.1,2634.8,0.37969]
[1729588340019,0.37969,2634.9,2634.8,0.37969]
[1729588340323,3.2078,2635.1,2634.8,0.37969]
[1729588340522,0.37968,2635.0,2634.9,0.37969]
[1729588340725,3.2078,2635.1,2635.0,0.37967]
[1729588342320,3.2078,2635.1,2635.0,4.17487]
[1729588342912,3.2078,2635.1,2635.0,0.37967]
[1729588344118,3.2078,2635.1,2634.9,2.38]
[1729588344119,3.2078,2635.4,2635.3,0.37962]
[1729588344822,3.2078,2635.4,2634.7,2.38]
[1729588345119,5.5878,2635.1,2634.3,1.94299105]
[1729588345420,3.58746,2635.1,2635.0,0.37967]
[1729588345618,3.2078,2635.1,2635.0,0.37967]
[1729588346029,3.2078,2635.4,2635.3,0.37963]
[1729588346529,3.58741,2635.4,2635.3,0.37963]
[1729588346922,3.58741,2635.4,2635.2,0.37963]
[1729588347733,3.2078,2635.4,2635.2,0.37963]
[1729588348022,3.58742,2635.4,2635.2,0.37963]
[1729588348618,3.2078,2635.4,2635.2,0.37963]
[1729588348819,0.37963,2635.3,2635.2,0.37963]
[1729588350225,0.37965,2635.2,2634.7,0.94927]
[1729588350423,3.2078,2635.4,2634.6,2.38]
[1729588350623,3.2078,2635.4,2634.4,1.49035657]
[1729588350624,3.2078,2634.9,2634.8,0.37969]
[1729588350826,3.58749,2634.9,2634.8,0.37969]
[1729588351216,3.2078,2634.9,2634.8,0.37969]
[1729588352224,3.58745,2635.2,2634.5,1.94291105]
[1729588352426,3.58745,2635.2,2635.0,0.37967]
[1729588353121,3.58745,2635.2,2634.5,1.94291105]
[1729588353122,3.2078,2635.2,2634.5,1.94291105]
[1729588353330,3.2078,2635.2,2635.1,0.37966]
[1729588353724,7.003,2635.2,2635.1,0.37966]
[1729588354538,3.2078,2635.2,2635.1,0.37966]
[1729588354829,7.003,2635.2,2635.1,0.37966]
[1729588355024,0.37964,2635.3,2635.2,0.37964]
[1729588355219,3.58744,2635.3,2635.2,0.37964]
[1729588355425,7.38184,2635.3,2635.2,0.37964]
[1729588355822,0.37964,2635.2,2634.7,0.94928]
[1729588356024,3.2078,2635.3,2635.1,0.37965]
[1729588356331,3.58744,2635.3,2635.2,0.37964]
[1729588356735,3.2078,2635.3,2635.2,0.37964]
[1729588357124,3.58743,2635.3,2635.2,0.37964]
[1729588357325,3.2078,2635.3,2635.2,0.37964]
[1729588357528,3.58743,2635.3,2635.2,0.37964]
[1729588358629,3.2078,2635.3,2635.2,0.37964]
[1729588358932,3.58743,2635.3,2635.2,0.37964]
[1729588361332,3.2078,2635.3,2635.2,0.37964]
[1729588361837,3.58743,2635.3,2635.2,0.37964]
[1729588362035,0.37965,2635.2,2635.1,0.37966]
[1729588362740,0.37968,2635.0,2634.5,0.99357105]
[1729588363031,3.2078,2634.9,2634.8,0.37969]
[1729588363436,3.58749,2634.9,2634.8,0.37969]
[1729588363839,3.2078,2634.9,2634.8,0.37969]
[1729588366935,3.2078,2635.3,2635.2,0.37964]
[1729588367234,3.2078,2635.8,2635.7,0.37957]
[1729588367437,3.58736,2635.8,2635.6,0.37958]
[1729588367635,3.58736,2635.8,2635.5,0.37959]
[1729588367636,0.37957,2635.7,2635.5,0.37959]
[1729588367836,3.2078,2635.8,2635.5,0.37959]
[1729588368138,0.37959,2635.6,2635.4,0.37961]
[1729588368339,3.2078,2635.5,2635.4,0.37961]
[1729588368931,3.2078,2635.5,2635.2,0.99485532]
[1729588369128,3.2078,2635.5,2635.1,0.99485532]
[1729588369628,2.38,2635.6,2635.2,0.37964]
[1729588369629,3.58742,2635.4,2635.2,0.37964]
[1729588369825,0.37963,2635.3,2635.1,0.37965]
[1729588370026,3.58742,2635.4,2635.2,0.37964]
[1729588371137,3.2078,2635.4,2635.3,0.37963]
[1729588374241,3.58741,2635.4,2635.2,0.37963]
[1729588374431,3.58741,2635.4,2635.3,0.37963]
[1729588374632,3.2078,2635.4,2635.3,0.37963]
[1729588376641,3.58741,2635.4,2635.3,0.37963]
[1729588376846,3.2078,2635.4,2635.3,0.37963]
[1729588380746,3.2078,2635.4,2635.0,0.99485532]
[1729588380946,0.37964,2635.3,2635.1,0.11874896]
[1729588381132,0.37965,2635.2,2635.0,0.37967]
[1729588381337,3.58746,2635.1,2635.0,0.37967]
[1729588381536,3.2078,2635.1,2635.0,0.37967]
[1729588382740,3.2078,2635.1,2634.7,0.99485532]
[1729588383043,3.2078,2635.1,2634.7,0.37971]
[1729588383044,0.0596227,2635.0,2634.7,0.37971]
[1729588383238,0.37969,2634.9,2634.7,0.37971]
[1729588383436,3.2078,2635.1,2634.9,0.37969]
[1729588383641,3.2078,2635.1,2635.0,0.37967]
[1729588385636,3.2078,2635.4,2635.3,0.37963]
[1729588387549,3.2078,2635.4,2635.3,1.37448532]
[1729588387742,3.2078,2635.4,2635.3,4.17403]
[1729588387949,3.2078,2635.4,2635.3,0.37963]
[1729588392046,7.0022,2635.4,2634.7,3.37485532]
[1729588392246,3.2078,2635.1,2634.5,3.37485532]
[1729588392449,0.37968,2635.0,2634.8,0.3797]
[1729588393148,3.2078,2635.1,2634.5,2.38]
[1729588393336,2.38,2635.0,2634.3,43.18]
[1729588393540,2.38,2635.0,2634.3,44.12942]
[1729588393541,2.75968,2635.0,2634.3,44.12942]
[1729588393742,0.37969,2634.9,2634.7,0.37971]
[1729588394148,2.75968,2635.0,2634.7,0.3797]
[1729588394546,0.37968,2635.0,2634.8,0.37969]
[1729588395846,3.2078,2635.1,2634.3,43.18]
[1729588396043,0.37971,2634.8,2634.7,0.37972]
[1729588396353,3.2078,2635.1,2634.7,0.37972]
[1729588396354,0.3797,2634.9,2634.7,0.37972]
[1729588396859,0.37968,2635.0,2634.8,0.37969]
[1729588397941,0.3797,2634.9,2634.7,0.37971]
[1729588398645,0.3797,2634.9,2634.8,0.3797]
[1729588399049,3.2078,2635.1,2634.8,0.3797]
[1729588399256,0.37968,2635.0,2634.8,0.3797]
[1729588399557,0.3797,2634.9,2634.7,0.37971]
[1729588399749,0.3797,2634.8,2634.7,0.37971]
[1729588399954,0.37969,2634.9,2634.7,0.37971]
[1729588400953,2.38,2635.2,2634.4,0.99485532]
[1729588401254,2.69102547,2635.3,2634.5,0.37974]
[1729588401255,0.37973,2634.7,2634.5,0.37974]
[1729588401461,0.37973,2634.7,2634.4,0.37976]
[1729588401659,0.37973,2634.7,2634.6,0.37973]
[1729588401855,0.37971,2634.8,2634.6,0.37973]
[1729588402762,0.37971,2634.8,2634.3,40.8]
[1729588402948,3.5875,2634.9,2634.3,43.18]
[1729588403152,0.37971,2634.8,2634.7,0.37971]
[1729588403555,3.2078,2634.9,2634.7,0.37971]
[1729588403756,3.5875,2634.9,2634.7,0.37971]
[1729588404364,1.09,2634.8,2634.7,0.37971]
[1729588404756,4.2978,2634.9,2634.7,1.09]
[1729588405058,4.2978,2634.9,2634.8,0.3797]
[1729588408270,0.37973,2634.7,2634.6,0.37972]
[1729588408463,1.46973,2634.7,2634.3,1.09]
[1729588408656,1.09,2634.5,2634.4,0.37976]
[1729588409763,1.09,2634.5,2634.4,1.46976]
[1729588409964,4.2978,2634.9,2634.4,2.18]
[1729588410166,4.2978,2634.9,2634.8,1.4697]
[1729588410365,3.2078,2634.9,2634.8,0.3797]
[1729588411264,3.58749,2634.9,2634.8,0.3797]
[1729588412867,0.37969,2634.9,2634.8,0.3797]
[1729588413067,3.58749,2634.9,2634.8,0.3797]
[1729588413464,3.2078,2634.9,2634.8,0.3797]
[1729588413771,3.58749,2634.9,2634.8,0.3797]
[1729588414171,3.2078,2634.9,2634.8,0.3797]
[1729588414565,3.58749,2634.9,2634.8,0.3797]
[1729588414964,3.2078,2634.9,2634.8,0.3797]
[1729588417074,3.2078,2634.9,2634.3,1.94428532]
[1729588417369,3.5875,2634.9,2634.7,0.3797]
[1729588417966,0.37972,2634.7,2634.6,0.37972]
[1729588418266,3.2078,2634.9,2634.5,0.37974]
[1729588418468,0.37971,2634.8,2634.6,0.37972]
[1729588418665,3.2078,2634.9,2634.2,43.17]
[1729588418860,3.2078,2634.5,2634.4,0.37976]
[1729588419673,3.2078,2634.5,2634.4,4.17576]
[1729588420367,3.2078,2634.5,2633.9,1.94441532]
[1729588420575,5.5778,2634.2,2633.8,4.20265532]
[1729588420766,0.37983,2634.0,2633.8,0.37984]
[1729588420966,0.37981,2634.1,2633.9,0.37983]
[1729588421769,0.37981,2634.1,2633.5,3.2078]
[1729588421770,5.5778,2634.2,2633.5,3.2078]
[1729588422162,0.37983,2634.0,2633.5,3.2078]
[1729588422370,5.5778,2634.2,2633.5,3.2078]
[1729588422677,0.37981,2634.1,2633.9,0.37983]
[1729588423865,0.37981,2634.1,2633.3,2.37]
[1729588424067,5.95759,2634.2,2634.0,0.37982]
[1729588424369,3.2078,2634.2,2634.1,0.3798]
[1729588426167,3.2078,2634.2,2633.6,0.94969]
[1729588426168,0.37982,2634.1,2633.6,0.37987]
[1729588426366,3.2078,2633.9,2633.8,0.37985]
[1729588428268,3.2078,2633.9,2633.4,40.8]
[1729588428776,3.2078,2633.9,2633.8,0.37985]
[1729588432474,4.2978,2633.9,2633.8,0.37985]
[1729588436175,4.2978,2633.9,2633.4,1.09]
[1729588436376,1.09,2633.5,2633.4,0.3799]
[1729588436777,1.09,2633.5,2633.3,0.37991]
[1729588436778,1.46989,2633.5,2633.3,0.37991]
[1729588437082,1.09,2633.4,2633.3,0.37991]
[1729588437974,0.37986,2633.8,2633.5,0.37989]
[1729588438177,4.4788,2633.9,2633.4,0.3799]
[1729588438178,1.09,2633.5,2633.4,0.3799]
[1729588438578,1.46989,2633.5,2633.4,0.3799]
[1729588438788,1.09,2633.5,2633.4,0.3799]
[1729588441377,0.37994,2633.2,2633.0,0.37995]
[1729588441580,4.2978,2633.1,2632.4,0.99485532]
[1729588441779,2.03975,2633.5,2632.4,0.38005]
[1729588441780,1.09,2632.5,2632.4,0.38005]
[1729588442587,1.09,2632.5,2632.3,0.38006]
[1729588442784,1.09,2632.4,2632.3,0.38006]
[1729588444280,2.37,2632.7,2632.2,3.2078]
[1729588444585,2.75001,2632.7,2632.4,0.38004]
[1729588444788,2.37,2632.7,2632.5,0.38003]
[1729588445490,2.37,2632.7,2632.2,3.2078]
[1729588445686,2.75001,2632.7,2632.2,3.2078]
[1729588445887,2.37,2632.7,2632.4,0.38004]
[1729588446091,0.38002,2632.6,2632.4,0.38004]
[1729588446288,2.37,2632.7,2632.4,0.38004]
[1729588446289,2.75001,2632.7,2632.4,0.38004]
[1729588446496,2.75001,2632.7,2632.5,0.38003]
[1729588447177,2.37,2632.7,2632.2,3.2078]
[1729588447375,2.37,2632.5,2632.3,0.38005]